bitfinex-derivatives/quotes_BTCF0:USTF0_20241104
["timestamp","ask_amount","ask_price","bid_price","bid_amount"]
[1730755510482,0.3608,67320.0,67319.0,0.44564]
[1730755511176,0.3608,67332.0,67329.0,0.074317]
[1730755511472,0.3608,67332.0,67330.0,0.074316]
[1730755512167,0.3608,67337.0,67335.0,0.074311]
[1730755512368,0.33051319,67360.0,67323.0,1.5]
[1730755512369,0.3608,67355.0,67336.0,0.80632]
[1730755512571,0.3608,67349.0,67333.0,0.33051319]
[1730755512771,0.3608,67355.0,67337.0,0.3608]
[1730755512968,0.3608,67355.0,67353.0,0.07429]
[1730755513275,0.3608,67359.0,67346.0,0.074298]
[1730755513579,0.0303,67387.0,67345.0,0.3608]
[1730755513580,0.3608,67372.0,67361.0,0.074282]
[1730755513876,0.3608,67380.0,67370.0,0.074271]
[1730755514073,0.3608,67387.0,67375.0,0.33051319]
[1730755514274,0.3608,67393.0,67386.0,0.074255]
[1730755514479,0.3608,67387.0,67359.0,0.33051319]
[1730755514772,0.36220001,67394.0,67376.0,0.22173932]
[1730755514978,0.36220001,67394.0,67380.0,0.3608]
[1730755514979,0.3608,67394.0,67380.0,0.3608]
[1730755515173,0.3608,67394.0,67389.0,0.07425]
[1730755515475,0.3608,67394.0,67391.0,0.074249]
[1730755515973,0.46216,67400.0,67391.0,0.44516]
[1730755516177,0.46216,67400.0,67383.0,0.33051319]
[1730755516178,0.4608,67400.0,67399.0,0.07424]
[1730755516383,0.46074,67400.0,67392.0,1.5]
[1730755516564,0.46074,67400.0,67372.0,0.33051319]
[1730755516565,0.07425,67391.0,67372.0,0.33051319]
[1730755516770,0.07425,67391.0,67362.0,0.3608]
[1730755516771,0.3608,67375.0,67354.0,0.3608]
[1730755517069,0.3608,67362.0,67341.0,0.3608]
[1730755517374,0.3608,67362.0,67360.0,0.074283]
[1730755517573,0.3608,67362.0,67361.0,0.44758655]
[1730755518067,0.3608,67368.0,67361.0,0.44758655]
[1730755518270,0.3608,67368.0,67361.0,0.00222655]
[1730755518479,0.0336,67390.0,67361.0,0.00222655]
[1730755518480,0.3608,67369.0,67361.0,0.00222655]
[1730755518771,0.3608,67375.0,67370.0,0.074272]
[1730755518970,0.3608,67384.0,67361.0,0.00222655]
[1730755519163,0.3608,67384.0,67367.0,0.3608]
[1730755519370,0.3608,67384.0,67383.0,0.074258]
[1730755519571,0.3608,67387.0,67383.0,0.074258]
[1730755519881,0.3608,67387.0,67385.0,0.074255]
[1730755520675,0.3608,67395.0,67386.0,0.4452]
[1730755520865,0.09994,67400.0,67398.0,0.074241]
[1730755521067,0.09994,67400.0,67398.0,0.44512]
[1730755521277,0.09994,67400.0,67387.0,1.5]
[1730755521575,0.09994,67400.0,67399.0,0.07424]
[1730755521970,0.09994,67400.0,67399.0,0.44512]
[1730755521971,0.46074,67400.0,67399.0,0.44512]
[1730755522170,0.09994,67400.0,67399.0,0.44512]
[1730755523274,0.09994,67400.0,67398.0,0.074241]
[1730755523469,0.09994,67400.0,67386.0,0.3608]
[1730755523671,0.09994,67400.0,67377.0,0.69131319]
[1730755523672,0.3608,67390.0,67377.0,0.69131319]
[1730755523977,0.09994,67400.0,67372.0,0.07325341]
[1730755523978,0.3608,67384.0,67382.0,0.074259]
[1730755524182,0.074267,67375.0,67358.0,0.093185]
[1730755524382,0.3608,67374.0,67373.0,1e-08]
[1730755524870,0.074274,67369.0,67358.0,0.0189]
[1730755525069,0.3608,67366.0,67346.0,0.3327403]
[1730755525269,0.3608,67366.0,67365.0,0.074278]
[1730755525469,0.3608,67366.0,67349.0,0.3608]
[1730755525773,0.3608,67366.0,67350.0,0.22139782]
[1730755526278,0.138041,67399.0,67350.0,0.22139782]
[1730755526279,0.3608,67378.0,67362.0,0.33051319]
[1730755526484,0.3608,67363.0,67350.0,0.22215782]
[1730755526674,0.3608,67363.0,67362.0,0.074281]
[1730755527674,0.3608,67363.0,67362.0,0.519641]
[1730755527873,0.3608,67378.0,67362.0,1.43667319]
[1730755528080,0.3608,67378.0,67377.0,0.074264]
[1730755528379,0.3608,67378.0,67362.0,0.3608]
[1730755528680,0.3608,67372.0,67371.0,0.074271]
[1730755528886,0.3608,67378.0,67371.0,0.074271]
[1730755529080,0.3608,67378.0,67364.0,1.5]
[1730755529081,0.3608,67378.0,67372.0,0.074269]
[1730755529384,0.3608,67372.0,67371.0,0.074271]
[1730755529574,0.3087804,67372.0,67371.0,0.074271]
[1730755530077,0.074271,67371.0,67364.0,0.074279]
[1730755530272,0.3087804,67372.0,67357.0,0.00222636]
[1730755530779,0.3087804,67372.0,67357.0,0.07651136]
[1730755531084,0.3087804,67372.0,67355.0,0.3608]
[1730755531085,0.435085,67358.0,67330.0,0.3608]
[1730755531273,0.3608,67345.0,67344.0,0.074301]
[1730755531474,0.3608,67345.0,67334.0,0.3308]
[1730755531475,0.3608,67358.0,67357.0,0.074287]
[1730755531688,0.0149,67388.0,67368.0,0.074274]
[1730755531986,0.3608,67383.0,67375.0,0.33051319]
[1730755532179,0.3608,67383.0,67382.0,0.074259]
[1730755532386,0.0149,67388.0,67387.0,0.074253]
[1730755532583,0.3608,67389.0,67388.0,0.074252]
[1730755532979,0.3608,67389.0,67381.0,0.3608]
[1730755533174,0.3608,67389.0,67372.0,0.3608]
[1730755533378,0.3608,67389.0,67374.0,0.33051319]
[1730755533575,0.0302,67398.0,67372.0,0.6608]
[1730755533576,0.0302,67398.0,67385.0,0.3608]
[1730755533781,0.3608,67392.0,67375.0,0.22171653]
[1730755533975,0.3608,67392.0,67374.0,0.3608]
[1730755533976,0.391,67398.0,67374.0,0.3608]
[1730755534183,0.391,67398.0,67385.0,0.074255]
[1730755534480,0.3608,67392.0,67374.0,0.3608]
[1730755534684,0.074252,67389.0,67379.0,0.074262]
[1730755534871,0.3608,67392.0,67374.0,0.3608]
[1730755535885,0.3608,67392.0,67380.0,0.07426]
[1730755536073,0.3608,67392.0,67374.0,0.3608]
[1730755536074,0.435048,67392.0,67374.0,0.3608]
[1730755536474,0.435048,67392.0,67390.0,0.074249]
[1730755536475,0.3608,67392.0,67390.0,0.074249]
[1730755536682,0.3608,67392.0,67381.0,0.3608]
[1730755536982,0.0302,67398.0,67381.0,0.3608]
[1730755537190,0.391,67398.0,67388.0,0.3608]
[1730755537384,0.0302,67398.0,67397.0,0.435042]
[1730755537786,0.0302,67398.0,67397.0,0.880162]
[1730755538083,0.09994,67400.0,67397.0,0.3608]
[1730755538589,0.09994,67400.0,67388.0,0.3608]
[1730755538882,0.09994,67400.0,67394.0,0.3608]
[1730755539396,0.09994,67400.0,67395.0,0.074244]
[1730755539585,0.09994,67400.0,67399.0,0.07424]
[1730755540275,0.54506,67400.0,67388.0,0.36156]
[1730755540481,0.09994,67400.0,67393.0,0.074246]
[1730755540686,0.09994,67400.0,67388.0,0.3608]
[1730755541188,0.09994,67400.0,67398.0,0.074241]
[1730755541412,0.09994,67400.0,67388.0,0.3608]
[1730755541590,0.09994,67400.0,67393.0,0.074246]
[1730755541888,0.3608,67395.0,67387.0,0.074253]
[1730755542094,0.3608,67395.0,67389.0,0.074251]
[1730755542387,0.3608,67395.0,67383.0,0.3608]
[1730755542692,0.0326,67399.0,67393.0,0.074247]
[1730755543188,0.074255,67386.0,67375.0,0.3608]
[1730755543377,0.3608,67394.0,67375.0,0.3608]
[1730755543578,0.3608,67385.0,67375.0,0.3608]
[1730755543784,0.3608,67377.0,67362.0,0.43490303]
[1730755543979,0.3608,67377.0,67362.0,0.3608]
[1730755544179,0.074267,67375.0,67362.0,0.3608]
[1730755544377,0.074267,67375.0,67366.0,0.074276]
[1730755544582,0.074267,67375.0,67362.0,0.3608]
[1730755544583,0.3608,67377.0,67362.0,0.3608]
[1730755544791,0.3608,67377.0,67369.0,0.074273]
[1730755545287,0.3608,67377.0,67362.0,0.3608]
[1730755545982,0.3608,67377.0,67373.0,0.074268]
[1730755546692,0.3608,67377.0,67363.0,0.33051319]
[1730755546880,0.0306,67384.0,67379.0,0.074262]
[1730755547081,0.0306,67384.0,67374.0,0.3608]
[1730755547282,0.0306,67384.0,67380.0,0.07426]
[1730755547480,0.0306,67384.0,67383.0,0.074258]
[1730755547678,0.3608,67401.0,67382.0,0.38862779]
[1730755547883,0.3608,67406.0,67380.0,0.3608]
[1730755547884,0.3608,67406.0,67394.0,0.33051319]
[1730755548084,0.074224,67414.0,67399.0,0.43504]
[1730755548594,0.063,67419.0,67399.0,0.88016]
[1730755548801,0.063,67419.0,67399.0,1.05022087]
[1730755548985,0.05537536,67400.0,67399.0,2.47757762]
[1730755549279,0.05537536,67400.0,67399.0,2.47743274]
[1730755549791,0.05537536,67400.0,67399.0,2.55096664]
[1730755549990,0.05537536,67400.0,67399.0,2.45393566]
[1730755550190,0.05537536,67400.0,67399.0,2.55078729]
[1730755550391,0.05537536,67400.0,67399.0,2.10566729]
[1730755550587,0.05537536,67400.0,67399.0,1.93504]
[1730755550781,0.05537536,67400.0,67399.0,2.00881566]
[1730755551085,0.05537536,67400.0,67384.0,0.17595756]
[1730755551086,0.074248,67392.0,67391.0,0.05900349]
[1730755551282,0.3608,67392.0,67381.0,0.07377566]
[1730755551483,0.3608,67382.0,67380.0,0.05902475]
[1730755551692,0.435059,67382.0,67374.0,0.05902475]
[1730755551994,0.435059,67382.0,67377.0,0.074264]
[1730755551995,0.3608,67382.0,67377.0,0.074264]
[1730755552191,0.3608,67382.0,67374.0,0.05902475]
[1730755552398,0.0603,67391.0,67381.0,0.3608]
[1730755552595,0.0603,67391.0,67383.0,0.05904965]
[1730755552788,0.0603,67391.0,67381.0,0.3608]
[1730755552789,0.0603,67391.0,67390.0,0.07425]
[1730755553100,0.0603,67391.0,67390.0,0.13329965]
[1730755553393,0.0603,67391.0,67390.0,0.13330509]
[1730755553593,0.0603,67391.0,67390.0,0.05905509]
[1730755553899,0.0603,67391.0,67381.0,0.3608]
[1730755553900,0.07425,67390.0,67386.0,0.05905509]
[1730755554081,0.07425,67390.0,67382.0,0.074259]
[1730755554082,0.07425,67390.0,67385.0,0.05905509]
[1730755554586,0.42254,67391.0,67385.0,0.05905509]
[1730755554809,0.074253,67388.0,67382.0,0.074258]
[1730755554992,0.0603,67391.0,67384.0,0.05905509]
[1730755555304,0.0603,67391.0,67386.0,0.05905509]
[1730755555593,0.0603,67391.0,67380.0,0.3608]
[1730755555785,0.0603,67391.0,67390.0,0.07425]
[1730755555987,0.3608,67398.0,67386.0,0.3608]
[1730755556187,0.05537536,67400.0,67399.0,0.07424]
[1730755556593,0.05537536,67400.0,67399.0,0.88016]
[1730755556797,3.6e-07,67400.0,67399.0,2.38016]
[1730755556998,0.467009,67428.0,67399.0,3.16049417]
[1730755557199,0.467009,67428.0,67423.0,0.3608]
[1730755557200,0.032,67428.0,67423.0,0.3608]
[1730755557386,0.0302,67432.0,67428.0,0.074208]
[1730755557590,0.0302,67432.0,67418.0,0.33051319]
[1730755557886,0.0302,67432.0,67422.0,0.3608]
[1730755558088,0.0302,67432.0,67427.0,0.074209]
[1730755558396,0.3608,67437.0,67422.0,0.3608]
[1730755558997,0.032,67442.0,67441.0,0.074194]
[1730755559495,0.106194,67442.0,67436.0,0.074199]
[1730755559696,0.3608,67438.0,67432.0,0.074204]
[1730755560101,0.3608,67438.0,67428.0,0.3608]
[1730755560292,0.3608,67438.0,67429.0,0.074207]
[1730755560491,0.3608,67438.0,67428.0,0.3608]
[1730755560698,0.032,67442.0,67436.0,0.3608]
[1730755561005,0.032,67442.0,67440.0,0.074194]
[1730755561299,0.3608,67447.0,67436.0,0.3608]
[1730755561599,0.074175,67459.0,67436.0,0.6608]
[1730755561788,0.0316,67463.0,67462.0,0.074171]
[1730755561983,0.0316,67463.0,67449.0,0.3608]
[1730755561984,0.3608,67468.0,67457.0,0.3608]
[1730755562201,0.434965,67468.0,67460.0,0.074173]
[1730755562385,0.434965,67468.0,67461.0,1.5]
[1730755562587,0.3608,67475.0,67461.0,1.5]
[1730755562795,0.3608,67475.0,67467.0,0.074165]
[1730755563101,0.3608,67475.0,67461.0,1.5]
[1730755563298,0.3608,67475.0,67470.0,0.074162]
[1730755563503,0.0301,67481.0,67473.0,0.074158]
[1730755563706,0.36216,67483.0,67477.0,0.074154]
[1730755563888,0.36216,67483.0,67464.0,0.3608]
[1730755563889,0.3608,67491.0,67478.0,0.3608]
[1730755564200,0.074133,67497.0,67480.0,0.074151]
[1730755564402,0.3608,67499.0,67486.0,0.074144]
[1730755564403,0.074135,67495.0,67486.0,0.074144]
[1730755565201,0.074135,67495.0,67478.0,0.3608]
[1730755565202,0.3608,67499.0,67478.0,0.3608]
[1730755565391,0.3608,67499.0,67478.0,0.6608]
[1730755565589,0.3608,67499.0,67462.0,0.07417]
[1730755565590,0.3608,67479.0,67462.0,0.07417]
[1730755565784,0.33051319,67492.0,67461.0,1.50076]
[1730755565785,0.074163,67469.0,67461.0,0.074932]
[1730755565985,0.3608,67467.0,67444.0,0.3608]
[1730755566187,0.3608,67467.0,67464.0,1e-08]
[1730755566392,0.074168,67465.0,67464.0,1e-08]
[1730755569294,0.518848,67465.0,67464.0,1e-08]
[1730755569905,0.3608,67467.0,67454.0,0.074179]
[1730755570091,0.3608,67455.0,67454.0,0.07418]
[1730755570692,0.3608,67455.0,67440.0,0.36302411]
[1730755570902,0.3608,67449.0,67448.0,0.074186]
[1730755571913,0.3608,67449.0,67440.0,0.36302411]
[1730755572116,0.3608,67442.0,67440.0,0.00222411]
[1730755572318,0.074194,67441.0,67440.0,0.00222411]
[1730755572609,0.3608,67442.0,67440.0,0.00222411]
[1730755573015,0.3608,67442.0,67441.0,0.074194]
[1730755573402,0.3608,67464.0,67441.0,0.44484]
[1730755573621,0.3608,67464.0,67463.0,0.07417]
[1730755573809,0.3608,67464.0,67451.0,0.3608]
[1730755574112,0.3608,67464.0,67458.0,0.074174]
[1730755574420,0.3608,67464.0,67451.0,0.3608]
[1730755574604,0.3608,67457.0,67445.0,0.3608]
[1730755574806,0.074172,67461.0,67452.0,1.5]
[1730755575208,0.074174,67460.0,67445.0,0.3608]
[1730755575517,0.074174,67460.0,67454.0,0.074179]
[1730755575716,0.3608,67464.0,67446.0,1.5]
[1730755576016,0.3608,67464.0,67462.0,0.074171]
[1730755576216,0.3608,67464.0,67460.0,0.074172]
[1730755576817,0.434969,67464.0,67460.0,0.074172]
[1730755577109,0.074173,67460.0,67454.0,0.074179]
[1730755577509,0.3608,67464.0,67457.0,0.074176]
[1730755577809,0.3608,67464.0,67463.0,0.07417]
[1730755578017,0.0304,67472.0,67463.0,0.43497]
[1730755578208,0.0304,67472.0,67471.0,0.074161]
[1730755579215,0.3608,67483.0,67471.0,1.5]
[1730755579526,0.106738,67492.0,67488.0,0.074142]
[1730755579713,0.3608,67493.0,67479.0,0.3608]
[1730755580023,0.074139,67492.0,67487.0,0.074143]
[1730755580221,0.074133,67497.0,67485.0,0.33051319]
[1730755580408,0.074129,67501.0,67497.0,0.074132]
[1730755580724,0.17413,67500.0,67495.0,0.074134]
[1730755580919,0.07413,67499.0,67495.0,0.074134]
[1730755581310,0.1,67500.0,67495.0,0.074134]
[1730755581515,0.074136,67494.0,67493.0,0.33051319]
[1730755581715,0.434936,67494.0,67493.0,0.33051319]
[1730755582521,0.074137,67493.0,67485.0,0.33051319]
[1730755582715,0.07414,67491.0,67488.0,0.074142]
[1730755582920,0.074141,67490.0,67485.0,0.40465819]
[1730755583220,0.3608,67494.0,67493.0,0.074137]
[1730755583724,0.3608,67494.0,67485.0,0.33051319]
[1730755584018,0.074137,67493.0,67485.0,0.33051319]
[1730755584224,0.074142,67489.0,67485.0,0.33051319]
[1730755584522,0.3608,67494.0,67485.0,0.33051319]
[1730755584910,0.3608,67487.0,67485.0,0.33051319]
[1730755585209,0.3608,67487.0,67486.0,0.074145]
[1730755586815,0.3608,67494.0,67493.0,0.074137]
[1730755587121,0.3608,67494.0,67493.0,0.40465019]
[1730755588216,0.1,67500.0,67499.0,0.07413]
[1730755588813,0.1,67500.0,67499.0,1.57413]
[1730755589017,0.174129,67500.0,67499.0,1.5]
[1730755589214,0.1,67500.0,67499.0,1.5]
[1730755589725,0.174129,67500.0,67499.0,1.5]
[1730755590035,0.074131,67499.0,67496.0,0.074133]
[1730755590327,0.074138,67493.0,67487.0,1.5]
[1730755590513,0.3608,67497.0,67485.0,0.33051319]
[1730755590823,0.3608,67497.0,67478.0,0.33051319]
[1730755590824,0.3608,67486.0,67478.0,0.33051319]
[1730755591036,0.074146,67485.0,67482.0,0.074148]
[1730755591321,0.074152,67480.0,67478.0,0.074152]
[1730755591622,0.3608,67479.0,67478.0,0.074152]
[1730755592122,0.3608,67479.0,67478.0,0.40466519]
[1730755592425,0.3608,67486.0,67485.0,0.074146]
[1730755593121,0.434936,67494.0,67489.0,0.07414]
[1730755593313,0.03987363,67493.0,67489.0,0.07414]
[1730755593525,0.436296,67494.0,67490.0,0.074139]
[1730755593820,0.03998479,67493.0,67491.0,0.074139]
[1730755594024,0.074138,67492.0,67488.0,0.074142]
[1730755594225,0.074138,67492.0,67489.0,0.074141]
[1730755594413,0.3608,67494.0,67487.0,0.33051319]
[1730755594613,0.3608,67498.0,67487.0,0.33051319]
[1730755594814,0.04012239,67497.0,67493.0,0.074136]
[1730755595020,0.04012239,67496.0,67487.0,0.33051319]
[1730755595223,0.3608,67492.0,67490.0,0.07414]
[1730755596123,0.074142,67489.0,67477.0,0.33051319]
[1730755596622,0.3608,67492.0,67489.0,0.07414]
[1730755596824,0.03976183,67491.0,67489.0,0.07414]
[1730755597122,0.074143,67487.0,67484.0,0.074146]
[1730755597421,0.1,67500.0,67499.0,0.07413]
[1730755598024,0.09777682,67500.0,67499.0,2.01857]
[1730755599624,0.09777682,67500.0,67499.0,1.57413]
[1730755600821,0.17190582,67500.0,67499.0,1.5]
[1730755601028,0.09777682,67500.0,67492.0,0.3608]
[1730755601229,0.074141,67489.0,67486.0,0.074144]
[1730755601527,0.074141,67489.0,67485.0,0.0022223]
[1730755601528,0.074145,67486.0,67485.0,0.0022223]
[1730755603934,0.3608,67487.0,67486.0,0.074145]
[1730755605330,0.3983,67499.0,67498.0,0.074131]
[1730755605633,0.09777682,67500.0,67498.0,0.074131]
[1730755605927,0.09777682,67500.0,67499.0,1.90464319]
[1730755606329,0.09777682,67500.0,67499.0,2.34908319]
[1730755606623,0.3608,67511.0,67510.0,0.074118]
[1730755606825,0.434898,67528.0,67519.0,0.074107]
[1730755607027,0.434898,67528.0,67522.0,0.074105]
[1730755607028,0.08970566,67527.0,67522.0,0.074105]
[1730755607223,0.04148232,67526.0,67512.0,0.074115]
[1730755607427,0.3608,67528.0,67520.0,0.33051319]
[1730755607735,0.0408,67534.0,67520.0,0.33051319]
[1730755607736,0.0408,67534.0,67528.0,0.074098]
[1730755608538,0.0408,67534.0,67529.0,0.33051319]
[1730755608927,0.0408,67534.0,67530.0,0.074096]
[1730755609434,0.3608,67547.0,67529.0,0.33051319]
[1730755609628,0.3608,67553.0,67535.0,0.07409]
[1730755609629,0.3608,67542.0,67535.0,0.07409]
[1730755609932,0.434884,67542.0,67533.0,0.074092]
[1730755610232,0.434884,67542.0,67534.0,0.074091]
[1730755610233,0.074084,67542.0,67534.0,0.074091]
[1730755610837,0.074089,67537.0,67529.0,0.33051319]
[1730755611130,0.3608,67540.0,67529.0,0.33051319]
[1730755611328,0.434892,67534.0,67529.0,0.33051319]
[1730755611528,0.3608,67534.0,67529.0,0.33051319]
[1730755611926,0.3608,67534.0,67522.0,0.074105]
[1730755611927,0.074095,67531.0,67522.0,0.074105]
[1730755612132,0.074095,67531.0,67521.0,1.83051319]
[1730755612133,0.074095,67531.0,67523.0,0.074104]
[1730755612729,0.3608,67534.0,67524.0,0.074103]
[1730755612928,0.3608,67534.0,67521.0,0.33051319]
[1730755613138,0.3608,67534.0,67525.0,0.074101]
[1730755614239,0.3608,67534.0,67515.0,1.50076]
[1730755614240,0.3608,67527.0,67515.0,0.00076]
[1730755614531,0.074111,67517.0,67510.0,0.074118]
[1730755614840,0.14230205,67516.0,67512.0,0.03387641]
[1730755615037,0.14230205,67515.0,67512.0,0.03387641]
[1730755615233,0.14230205,67514.0,67512.0,0.03387641]
[1730755615532,0.14230205,67513.0,67512.0,0.03387641]
[1730755617136,0.21641705,67513.0,67508.0,0.00076]
[1730755617440,0.21641705,67513.0,67506.0,0.00222189]
[1730755617441,0.074121,67507.0,67506.0,0.00222189]
[1730755617825,0.4444,67507.0,67482.0,0.33051319]
[1730755618134,0.3608,67500.0,67490.0,0.33051319]
[1730755618437,0.3608,67500.0,67497.0,0.074132]
[1730755618640,0.3608,67500.0,67490.0,0.33051319]
[1730755618845,0.3608,67500.0,67495.0,0.074134]
[1730755619137,0.3608,67500.0,67499.0,0.07413]
[1730755621427,0.0448,67511.0,67504.0,0.074124]
[1730755621940,0.0448,67511.0,67492.0,0.3608]
[1730755622346,0.074128,67501.0,67494.0,0.074135]
[1730755623236,0.074128,67501.0,67492.0,0.3608]
[1730755623441,0.3608,67506.0,67492.0,0.3608]
[1730755623640,0.434923,67506.0,67498.0,0.074131]
[1730755624142,0.3608,67506.0,67500.0,0.074128]
[1730755624446,0.3608,67506.0,67496.0,0.074134]
[1730755624747,0.3608,67497.0,67490.0,0.074139]
[1730755625437,0.074134,67496.0,67486.0,1.50084]
[1730755625634,0.3608,67491.0,67486.0,1.5]
[1730755625838,0.074143,67487.0,67478.0,0.3608]
[1730755626450,0.074143,67487.0,67484.0,0.074146]
[1730755626744,0.074143,67487.0,67479.0,1.5]
[1730755626934,0.434939,67491.0,67487.0,0.074143]
[1730755627135,0.3608,67491.0,67479.0,1.5]
[1730755627536,0.074145,67486.0,67481.0,0.07415]
[1730755628043,0.074145,67486.0,67479.0,1.5]
[1730755628452,0.074145,67486.0,67467.0,0.13322009]
[1730755628743,0.074145,67486.0,67481.0,0.074149]
[1730755629353,0.74452,67486.0,67468.0,0.074164]
[1730755629550,0.3608,67472.0,67464.0,0.00076]
[1730755629739,0.3608,67472.0,67471.0,0.074161]
[1730755631436,0.43496,67472.0,67471.0,0.074161]
[1730755631943,0.3608,67484.0,67482.0,0.074149]
[1730755632151,0.074149,67482.0,67479.0,0.074152]
[1730755632346,0.3608,67484.0,67472.0,0.07416]
[1730755632652,0.3608,67484.0,67483.0,0.074148]
[1730755634045,0.3608,67497.0,67483.0,0.44456]
[1730755634245,0.3608,67497.0,67478.0,0.57530429]
[1730755634246,0.3608,67506.0,67494.0,0.21374429]
[1730755634451,0.03751558,67505.0,67495.0,1.5]
[1730755634642,0.3608,67506.0,67505.0,0.074124]
[1730755635951,0.3608,67506.0,67502.0,0.28787029]
[1730755636153,0.3608,67506.0,67502.0,0.074126]
[1730755636154,0.434923,67506.0,67502.0,0.074126]
[1730755636458,0.434923,67506.0,67495.0,1.5]
[1730755636459,0.3608,67506.0,67495.0,1.5]
[1730755636643,0.3608,67499.0,67496.0,0.074133]
[1730755637346,0.074134,67496.0,67495.0,0.00076]
[1730755637547,0.074137,67494.0,67490.0,0.074139]
[1730755637756,0.074138,67493.0,67490.0,0.074139]
[1730755637945,0.3608,67491.0,67488.0,0.074142]
[1730755638452,0.3608,67491.0,67484.0,0.074146]
[1730755638751,0.3608,67488.0,67487.0,0.074142]
[1730755639154,0.3608,67499.0,67481.0,1.5]
[1730755639155,0.3608,67499.0,67481.0,1.82945407]
[1730755639354,0.3608,67499.0,67483.0,0.074147]
[1730755639655,0.3608,67499.0,67481.0,1.82945407]
[1730755639656,0.3608,67499.0,67498.0,0.074131]
[1730755639842,0.3608,67499.0,67481.0,1.82945407]
[1730755640044,0.3608,67493.0,67488.0,0.074141]
[1730755640250,0.3608,67493.0,67489.0,0.074141]
[1730755641550,0.074138,67492.0,67485.0,0.074146]
[1730755641857,0.074138,67492.0,67486.0,0.074144]
[1730755642266,0.07414,67490.0,67486.0,0.074144]
[1730755643056,0.3608,67493.0,67481.0,1.5]
[1730755643248,0.074142,67488.0,67483.0,0.074147]
[1730755643450,0.074138,67492.0,67481.0,1.50084]
[1730755643650,0.3608,67493.0,67491.0,0.074139]
[1730755643956,0.074139,67491.0,67486.0,0.074144]
[1730755644550,0.074139,67491.0,67481.0,1.50076]
[1730755644551,0.3608,67493.0,67481.0,1.50076]
[1730755644750,0.3608,67493.0,67489.0,0.074141]
[1730755645153,0.074138,67492.0,67489.0,0.074141]
[1730755645556,0.3608,67493.0,67492.0,0.074138]
[1730755645954,0.3608,67501.0,67492.0,0.074138]
[1730755646153,0.32316,67530.0,67496.0,0.32945407]
[1730755646154,0.3608,67509.0,67496.0,0.32945407]
[1730755646353,0.3608,67509.0,67506.0,0.074122]
[1730755646547,0.3608,67509.0,67496.0,0.32945407]
[1730755646548,0.3608,67509.0,67508.0,0.07412]
[1730755647164,0.0456,67515.0,67501.0,0.074127]
[1730755647165,0.3608,67515.0,67514.0,0.074114]
[1730755648757,0.3608,67515.0,67506.0,1.5]
[1730755648758,0.13,67534.0,67513.0,0.32945407]
[1730755649063,0.3608,67529.0,67515.0,0.3608]
[1730755649362,0.3608,67536.0,67532.0,0.074094]
[1730755649563,0.3608,67537.0,67522.0,0.074105]
[1730755649768,0.3608,67537.0,67534.0,0.074091]
[1730755650065,0.3608,67537.0,67535.0,0.07409]
[1730755650365,0.074082,67543.0,67522.0,0.074105]
[1730755650366,0.3608,67543.0,67540.0,0.074085]
[1730755650864,0.3608,67543.0,67529.0,0.32945407]
[1730755651257,0.3608,67543.0,67535.0,0.07409]
[1730755651472,0.3608,67543.0,67539.0,0.074086]
[1730755651860,0.3608,67543.0,67529.0,0.32945407]
[1730755652061,0.3608,67543.0,67542.0,0.074083]
[1730755652266,0.3608,67556.0,67554.0,0.074069]
[1730755652566,0.19855426,67555.0,67554.0,0.07407]
[1730755652754,0.29812315,67555.0,67554.0,0.32945407]
[1730755653063,0.13703569,67555.0,67554.0,0.32945407]
[1730755653456,0.08502114,67555.0,67554.0,0.32945407]
[1730755654060,0.08502114,67555.0,67554.0,0.76432407]
[1730755654061,0.1343791,67555.0,67554.0,0.76432407]
[1730755654367,0.03934257,67555.0,67554.0,0.40352407]
[1730755655268,0.03934257,67555.0,67554.0,0.32945407]
[1730755655863,0.3608,67559.0,67544.0,0.32945407]
[1730755656063,0.3608,67559.0,67533.0,0.3608]
[1730755656064,0.3608,67551.0,67541.0,0.074083]
[1730755656366,0.11199811,67550.0,67536.0,0.32945407]
[1730755656563,0.03792311,67549.0,67542.0,0.074083]
[1730755656877,0.3608,67545.0,67533.0,0.00088]
[1730755657062,0.3608,67545.0,67526.0,0.3608]
[1730755657063,0.3608,67538.0,67526.0,0.3608]
[1730755657378,0.074098,67529.0,67526.0,0.3608]
[1730755657574,0.3608,67527.0,67524.0,0.0022208]
[1730755657876,0.03792311,67526.0,67524.0,0.0022208]
[1730755658170,0.11202511,67525.0,67524.0,0.0022208]
[1730755658872,0.03792311,67525.0,67524.0,0.0022208]
[1730755659074,0.03792311,67525.0,67524.0,0.0763238]
[1730755660465,0.074095,67531.0,67524.0,0.0763238]
[1730755660671,0.3608,67532.0,67524.0,0.0022208]
[1730755660863,0.3608,67532.0,67526.0,0.21357573]
[1730755661064,0.3608,67532.0,67531.0,0.074095]
[1730755661268,0.3608,67532.0,67526.0,0.21357573]
[1730755661462,0.3608,67532.0,67528.0,0.074098]
[1730755661667,0.3608,67532.0,67526.0,0.21357573]
[1730755661668,0.3608,67532.0,67531.0,0.074095]
[1730755664278,0.3608,67542.0,67541.0,0.074083]
[1730755664469,0.3608,67547.0,67546.0,0.074079]
[1730755664964,0.436227,67557.0,67545.0,0.21357573]
[1730755664965,0.36216,67557.0,67545.0,0.57437573]
[1730755665166,0.3608,67557.0,67556.0,0.074068]
[1730755665365,0.3608,67572.0,67553.0,0.57437573]
[1730755665570,0.43485,67572.0,67564.0,0.074059]
[1730755665768,0.074052,67571.0,67564.0,0.074059]
[1730755665971,0.3608,67572.0,67560.0,0.21357573]
[1730755666175,0.074058,67565.0,67560.0,0.21357573]
[1730755666570,0.3608,67566.0,67554.0,0.21357573]
[1730755666765,0.3608,67566.0,67561.0,0.074061]
[1730755667180,0.3608,67566.0,67557.0,0.074067]